bitfinex-derivatives/quotes_BTCF0:USTF0_20230701
["timestamp","ask_amount","ask_price","bid_price","bid_amount"]
[1688218670879,0.351866,30589.0,30588.0,0.577318]
[1688218671281,0.351866,30589.0,30588.0,0.5577]
[1688218671589,0.669466,30589.0,30588.0,0.2472]
[1688218673481,0.669466,30589.0,30588.0,0.34006296]
[1688218673690,0.669466,30589.0,30588.0,0.28566745]
[1688218673883,0.422266,30589.0,30588.0,0.60006745]
[1688218674279,0.422266,30589.0,30588.0,0.61829714]
[1688218674484,0.104666,30589.0,30588.0,0.61829714]
[1688218675491,0.104666,30589.0,30588.0,0.60006745]
[1688218676591,0.104666,30589.0,30588.0,0.61829714]
[1688218677895,0.104666,30589.0,30588.0,0.60006745]
[1688218678595,0.104666,30589.0,30588.0,0.61829714]
[1688218678982,0.104666,30589.0,30588.0,0.60006745]
[1688218679792,0.104666,30589.0,30588.0,0.61829714]
[1688218684206,0.104666,30589.0,30588.0,0.60006745]
[1688218684396,0.104666,30589.0,30588.0,0.581218]
[1688218685802,0.104666,30589.0,30588.0,0.60006745]
[1688218686101,0.104666,30589.0,30588.0,0.61829714]
[1688218686307,0.104666,30589.0,30588.0,0.60006745]
[1688218687698,0.104666,30589.0,30588.0,0.58044945]
[1688218688101,0.104666,30589.0,30588.0,0.5616]
[1688218689006,0.104666,30589.0,30588.0,0.581217]
[1688218689207,0.104666,30589.0,30588.0,0.60006645]
[1688218689411,0.10450357,30589.0,30588.0,0.60006645]
[1688218694625,0.10450357,30589.0,30588.0,0.61829614]
[1688218696600,0.10450357,30589.0,30588.0,0.60006645]
[1688218697901,0.10450357,30589.0,30588.0,0.581217]
[1688218698406,0.10450357,30589.0,30588.0,0.59944669]
[1688218698815,0.10450357,30589.0,30588.0,0.61829614]
[1688218699020,0.10450357,30589.0,30588.0,0.60006645]
[1688218700018,0.10450357,30589.0,30588.0,0.61829614]
[1688218701221,0.10450357,30589.0,30588.0,0.60006645]
[1688218702321,0.10450357,30589.0,30588.0,0.61829614]
[1688218702517,0.10450357,30589.0,30588.0,0.61815958]
[1688218706723,0.10450357,30589.0,30588.0,0.59992989]
[1688218708126,0.10450357,30589.0,30588.0,0.61815958]
[1688218708322,0.10450357,30589.0,30588.0,0.59992989]
[1688218709130,0.10450357,30589.0,30588.0,0.61815958]
[1688218709723,0.10450357,30589.0,30588.0,0.59992989]
[1688218710337,0.10450357,30589.0,30588.0,0.61815958]
[1688218710631,0.10450357,30589.0,30588.0,0.59992989]
[1688218711819,0.10450357,30589.0,30588.0,0.61815958]
[1688218712221,0.10450357,30589.0,30588.0,0.59992989]
[1688218713227,0.10450357,30589.0,30588.0,0.61815958]
[1688218715820,0.10450357,30589.0,30588.0,0.59992989]
[1688218716522,0.10450357,30589.0,30588.0,0.61815958]
[1688218717815,0.10450357,30589.0,30588.0,0.59992989]
[1688218718621,0.10450357,30589.0,30588.0,0.61815958]
[1688218718930,0.10450357,30589.0,30588.0,0.59992989]
[1688218719925,0.10450357,30589.0,30588.0,0.58108044]
[1688218721829,0.10450357,30589.0,30588.0,0.56132866]
[1688218721830,0.46530357,30589.0,30588.0,0.56132866]
[1688218722037,0.46530357,30589.0,30587.0,0.2453]
[1688218722331,0.10417457,30588.0,30587.0,0.2453]
[1688218723147,0.40387457,30588.0,30587.0,0.2453]
[1688218724537,0.40387457,30588.0,30583.0,0.058862]
[1688218724538,0.65097457,30588.0,30586.0,0.2463]
[1688218724725,0.35137557,30587.0,30586.0,0.2463]
[1688218725724,0.35137557,30587.0,30586.0,0.265919]
[1688218728327,0.35137557,30587.0,30586.0,0.30299814]
[1688218729036,0.35130696,30587.0,30586.0,0.28476845]
[1688218729424,0.35130696,30587.0,30586.0,0.28566845]
[1688218729425,0.10417557,30587.0,30586.0,0.28566845]
[1688218729836,0.10417557,30587.0,30586.0,0.30389814]
[1688218730838,0.10417557,30587.0,30586.0,0.28566845]
[1688218731830,0.10417557,30587.0,30586.0,0.30389814]
[1688218732339,0.10417557,30587.0,30586.0,0.28566845]
[1688218732532,0.10417557,30587.0,30586.0,0.30389814]
[1688218732737,0.10417557,30587.0,30586.0,0.28566845]
[1688218733337,0.10417557,30587.0,30586.0,0.30389814]
[1688218733537,0.10417557,30587.0,30586.0,0.28566845]
[1688218734438,0.10417557,30587.0,30586.0,0.30389814]
[1688218734636,0.10417557,30587.0,30586.0,0.28566845]
[1688218735136,0.10417557,30587.0,30586.0,0.30389814]
[1688218737337,0.10417557,30587.0,30586.0,0.28566845]
[1688218738235,0.10417557,30587.0,30586.0,0.30389814]
[1688218738829,0.10417557,30587.0,30586.0,0.28566845]
[1688218740357,0.10417557,30587.0,30586.0,0.30389814]
[1688218741243,0.10417557,30587.0,30586.0,0.28566845]
[1688218742136,0.10417557,30587.0,30586.0,0.30389814]
[1688218743245,0.10417557,30587.0,30586.0,0.28566845]
[1688218744132,0.10417557,30587.0,30586.0,0.30389814]
[1688218744332,0.10417557,30587.0,30586.0,0.28566845]
[1688218744637,0.10417557,30587.0,30586.0,0.30389814]
[1688218746229,0.10417557,30587.0,30586.0,0.28566845]
[1688218746832,0.10417557,30587.0,30586.0,0.30389814]
[1688218747235,0.10417557,30587.0,30586.0,0.28566845]
[1688218747544,0.10417557,30587.0,30586.0,0.266819]
[1688218748449,0.10417557,30587.0,30586.0,0.28504869]
[1688218749138,0.10417557,30587.0,30586.0,0.266819]
[1688218749547,0.10417557,30587.0,30586.0,0.28504869]
[1688218749753,0.10417557,30587.0,30586.0,0.266819]
[1688218750442,0.10417557,30587.0,30585.0,0.5761]
[1688218750443,0.71197557,30587.0,30585.0,0.5761]
[1688218750643,0.08475469,30586.0,30585.0,0.595719]
[1688218750938,0.10437369,30586.0,30585.0,0.595719]
[1688218754452,0.10437369,30586.0,30585.0,0.593819]
[1688218754653,0.1043118,30586.0,30585.0,0.593819]
[1688218754956,0.1043118,30586.0,30585.0,0.61266845]
[1688218757943,0.1043118,30586.0,30585.0,0.593819]
[1688218763865,0.1308542,30586.0,30585.0,0.593819]
[1688218767364,0.1308542,30586.0,30585.0,0.61266845]
[1688218767660,0.1043118,30586.0,30585.0,0.61266845]
[1688218768166,0.1043118,30586.0,30585.0,0.63089814]
[1688218768860,0.1043118,30586.0,30585.0,0.61266845]
[1688218771277,0.10417657,30586.0,30585.0,0.61266845]
[1688218772180,0.10417657,30586.0,30585.0,0.63089814]
[1688218772573,0.10417657,30586.0,30585.0,0.61266845]
[1688218776882,0.10417657,30586.0,30585.0,0.63089814]
[1688218777681,0.10417657,30586.0,30585.0,0.61266845]
[1688218779781,0.10417657,30586.0,30585.0,0.593819]
[1688218782280,0.10417657,30586.0,30585.0,0.61266845]
[1688218783375,0.10417657,30586.0,30585.0,0.63089814]
[1688218783579,0.10417657,30586.0,30585.0,0.61266845]
[1688218785788,0.10417657,30586.0,30585.0,0.63089814]
[1688218786090,0.10417657,30586.0,30585.0,0.61266845]
[1688218788283,0.10417657,30586.0,30585.0,0.63089814]
[1688218788984,0.10417657,30586.0,30585.0,0.61266845]
[1688218790089,0.10417657,30586.0,30585.0,0.63089814]
[1688218790280,0.10417657,30586.0,30585.0,0.61266845]
[1688218791785,0.10417657,30586.0,30585.0,0.63089814]
[1688218792091,0.10417657,30586.0,30585.0,0.61266845]
[1688218792390,0.10417657,30586.0,30585.0,0.63089814]
[1688218792691,0.10417657,30586.0,30585.0,0.61266845]
[1688218794894,0.10417657,30586.0,30585.0,0.63089814]
[1688218795289,0.10417657,30586.0,30585.0,0.61266845]
[1688218800185,0.10417657,30586.0,30585.0,0.593819]
[1688218800690,0.10417657,30586.0,30585.0,0.61204869]
[1688218801298,0.10417657,30586.0,30585.0,0.61266845]
[1688218801793,0.10417657,30586.0,30585.0,0.63089814]
[1688218801995,0.10417657,30586.0,30585.0,0.61266845]
[1688218802383,0.10417657,30586.0,30585.0,0.593819]
[1688218802986,0.10417657,30586.0,30585.0,0.264919]
[1688218803602,0.10417657,30586.0,30585.0,0.28376845]
[1688218806090,0.10931808,30586.0,30585.0,0.28376845]
[1688218806698,0.10931808,30586.0,30585.0,0.30199814]
[1688218809603,0.10931808,30586.0,30585.0,0.28376845]
[1688218810103,0.10931808,30586.0,30585.0,0.30199814]
[1688218813708,0.10931808,30586.0,30585.0,0.28376845]
[1688218814091,0.10417657,30586.0,30585.0,0.264919]
[1688218814512,0.10925041,30586.0,30585.0,0.264919]
[1688218814907,0.10417657,30586.0,30585.0,0.28376845]
[1688218815912,0.10417657,30586.0,30585.0,0.30199814]
[1688218817902,0.10417657,30586.0,30585.0,0.28376845]
[1688218818694,0.10417657,30586.0,30585.0,0.30199814]
[1688218824608,0.10925667,30586.0,30585.0,0.30199814]
[1688218825903,0.08963767,30586.0,30585.0,0.30199814]
[1688218826107,0.10925567,30586.0,30585.0,0.30199814]
[1688218828419,0.08963767,30586.0,30585.0,0.30199814]
[1688218829726,0.10925567,30586.0,30585.0,0.30199814]
[1688218832505,0.10965554,30586.0,30585.0,0.30199814]
[1688218835323,0.02509797,30586.0,30585.0,0.30199814]
[1688218840956,0.02001787,30586.0,30585.0,0.30199814]
[1688218842726,0.10457484,30586.0,30585.0,0.30199814]
[1688218850219,0.02001787,30586.0,30585.0,0.66279814]
[1688218850423,0.02001787,30586.0,30585.0,0.30199814]
[1688218850723,0.019618,30586.0,30585.0,0.66279814]
[1688218851832,0.019618,30586.0,30585.0,0.30199814]
[1688218852034,0.019618,30586.0,30585.0,0.66279814]
[1688218855444,0.000328,30589.0,30586.0,0.01884945]
[1688218855743,0.642214,30592.0,30589.0,0.019616]
[1688218855954,0.04520822,30592.0,30591.0,0.874815]
[1688218856136,0.10416294,30592.0,30591.0,0.91189414]
[1688218856540,0.10452722,30592.0,30591.0,0.91189414]
[1688218859233,0.08491322,30592.0,30591.0,0.91189414]
[1688218861744,0.00049033,30595.0,30592.0,0.01884945]
[1688218861945,0.00049033,30595.0,30594.0,0.608]
[1688218862249,0.00049033,30595.0,30594.0,0.627613]
[1688218862467,0.00049033,30595.0,30594.0,0.66469214]
[1688218862751,0.02669209,30595.0,30594.0,0.66469214]
[1688218863047,0.00081841,30595.0,30594.0,0.66469214]
[1688218864641,0.08535693,30595.0,30594.0,0.66469214]
[1688218865236,0.00081841,30595.0,30594.0,0.66469214]
[1688218869534,0.00850056,30595.0,30594.0,0.66469214]
[1688218873459,0.3273,30600.0,30595.0,0.06884945]
[1688218873645,0.11747118,30603.0,30600.0,0.019609]
[1688218873846,0.39773074,30602.0,30601.0,0.28218524]
[1688218874050,0.39773074,30602.0,30601.0,0.30388714]
[1688218874447,0.08453074,30602.0,30601.0,0.62508714]
[1688218876147,0.08453074,30602.0,30601.0,0.30388714]
[1688218876358,0.08453074,30602.0,30601.0,0.62508714]
[1688218881157,0.09229533,30602.0,30601.0,0.62508714]
[1688218881760,0.09262578,30602.0,30601.0,0.62508714]
[1688218884555,0.09262578,30602.0,30601.0,0.87058714]
[1688218885458,0.00809504,30602.0,30601.0,0.87058714]
[1688218886263,0.09262501,30602.0,30601.0,0.87058714]
[1688218887660,0.00809504,30602.0,30601.0,0.87058714]
[1688218895174,0.09262295,30602.0,30601.0,0.87058714]
[1688218899181,0.08627043,30602.0,30601.0,1.23028714]
[1688218899390,0.02617413,30603.0,30601.0,1.23028714]
[1688218899580,0.02617413,30603.0,30602.0,0.30388714]
[1688218899789,0.00049016,30605.0,30602.0,0.30388714]
[1688218899984,0.00049016,30605.0,30604.0,0.6074]
[1688218900190,0.00049016,30605.0,30604.0,0.66408614]
[1688218900493,0.02661871,30605.0,30604.0,0.66408614]
[1688218900695,0.00049016,30605.0,30604.0,0.97088614]
[1688218902285,0.06668504,30609.0,30605.0,0.01884945]
[1688218902491,0.3262,30610.0,30608.0,0.266804]
[1688218902683,0.08451791,30609.0,30608.0,0.019604]
[1688218902893,0.08451791,30609.0,30608.0,0.28503369]
[1688218903309,0.08451791,30609.0,30608.0,0.58513369]
[1688218903506,0.08451791,30609.0,30608.0,0.60398314]
[1688218903680,0.08508795,30609.0,30608.0,0.60398314]
[1688218904580,0.08451791,30609.0,30608.0,0.60398314]
[1688218906690,0.09690649,30609.0,30608.0,0.60398314]
[1688218908286,0.09690649,30609.0,30608.0,0.96478314]
[1688218909286,0.09690649,30609.0,30608.0,0.94593369]
[1688218909895,0.09690649,30609.0,30608.0,0.96478314]
[1688218918506,0.0963352,30609.0,30608.0,0.96478314]
[1688218923601,0.09690747,30609.0,30608.0,0.96478314]
[1688218924408,0.09690747,30609.0,30608.0,1.224904]
[1688218924409,0.01165937,30609.0,30608.0,1.224904]
[1688218924616,0.6089,30615.0,30608.0,1.26198314]
[1688218924799,0.3920131,30618.0,30614.0,0.608]
[1688218925108,0.3920131,30618.0,30615.0,0.28395045]
[1688218925305,0.3920131,30618.0,30615.0,0.30218014]
[1688218925603,0.26889833,30621.0,30617.0,0.2668]
[1688218925604,0.3920131,30619.0,30617.0,0.2668]
[1688218925804,0.3920131,30619.0,30618.0,0.2458]
[1688218926006,0.3920131,30619.0,30618.0,0.265399]
[1688218926308,1.02153243,30620.0,30618.0,0.265399]
[1688218926499,1.02153243,30620.0,30619.0,0.2472]
[1688218926698,1.02153243,30620.0,30619.0,0.266799]
[1688218927097,1.50904948,30620.0,30619.0,0.266799]
[1688218927302,1.59355059,30620.0,30619.0,0.266799]
[1688218927497,1.59355059,30620.0,30619.0,0.28502869]
[1688218927802,1.59355059,30620.0,30619.0,0.266799]
[1688218928007,1.31900867,30620.0,30619.0,0.266799]
[1688218928309,1.31900867,30620.0,30619.0,0.30387814]
[1688218929296,1.20153749,30620.0,30619.0,0.55107814]
[1688218930613,0.71402044,30620.0,30619.0,0.55107814]
[1688218931113,0.71402044,30620.0,30619.0,0.88357814]
[1688218931906,0.73031177,30620.0,30619.0,0.88357814]
[1688218934115,0.73031177,30620.0,30619.0,0.84512969]
[1688218934417,0.73031177,30620.0,30619.0,0.2472]
[1688218934599,0.73031177,30620.0,30614.0,0.3608]
[1688218934808,0.44530111,30619.0,30617.0,0.2458]
[1688218935106,0.33170111,30618.0,30617.0,0.2458]
[1688218935413,0.3490606,30618.0,30617.0,0.2458]
[1688218935711,0.1018606,30618.0,30617.0,0.2662]
[1688218937408,0.1018606,30618.0,30617.0,0.30327914]
[1688218937607,0.1018606,30618.0,30617.0,0.66407914]
[1688218940112,0.1018606,30618.0,30617.0,0.30327914]
[1688218943612,0.1018606,30618.0,30617.0,0.2662]
[1688218944310,0.1018606,30618.0,30617.0,0.30327914]
[1688218944821,0.1018606,30618.0,30617.0,0.28367914]
[1688218952716,0.00031933,30620.0,30619.0,0.2461]
[1688218952916,0.00031933,30620.0,30619.0,0.52897914]
[1688218953726,0.00031933,30620.0,30619.0,0.51074945]
[1688218953921,0.00031933,30620.0,30619.0,0.4919]
[1688218954429,0.00031933,30620.0,30619.0,0.2458]
[1688218954625,0.36111933,30620.0,30619.0,0.2458]
[1688218955617,0.44561451,30620.0,30619.0,0.2458]
[1688218956833,0.44561451,30620.0,30619.0,0.26464945]
[1688218957328,0.44561451,30620.0,30619.0,0.2458]
[1688218960131,0.44561451,30620.0,30619.0,0.26464945]
[1688218960326,0.45862633,30620.0,30619.0,0.26464945]
[1688218961735,0.45862633,30620.0,30619.0,0.2458]
[1688218964830,0.09782633,30620.0,30619.0,0.26464945]
[1688218965441,0.09782633,30620.0,30619.0,0.28287914]
[1688218967436,0.09782633,30620.0,30619.0,0.28264897]
[1688218969035,0.09782633,30620.0,30619.0,0.24556983]
[1688218974541,0.09782633,30620.0,30619.0,0.26441928]
[1688218974734,0.09782633,30620.0,30619.0,0.28401828]
[1688218976242,0.48983943,30620.0,30619.0,0.28401828]
[1688218976442,0.48983943,30620.0,30619.0,0.26441928]
[1688218976649,0.09782633,30620.0,30619.0,0.26441928]
[1688218976945,0.09782633,30620.0,30619.0,0.24556983]
[1688218977336,0.48983943,30620.0,30619.0,0.24556983]
[1688218977540,0.48983943,30620.0,30619.0,0.28401828]
[1688218977740,0.09782633,30620.0,30619.0,0.30224797]
[1688218978240,0.09782633,30620.0,30619.0,0.28401828]
[1688218979137,0.09782633,30620.0,30619.0,0.30224797]
[1688218979441,0.09782633,30620.0,30619.0,0.26516883]
[1688218981046,0.09782633,30620.0,30619.0,0.26506215]
[1688218981441,0.09782633,30620.0,30619.0,0.2839116]
[1688218982235,0.09782633,30620.0,30619.0,0.26506215]
[1688218982837,0.09782633,30620.0,30619.0,0.24546315]
[1688218984344,0.09782633,30620.0,30619.0,0.2643126]
[1688218985034,0.09782633,30620.0,30619.0,0.2839116]
[1688218985240,0.09782633,30620.0,30619.0,0.30214129]
[1688218985445,0.04782633,30620.0,30619.0,0.30214129]
[1688218985841,0.40521577,30620.0,30619.0,0.30214129]
[1688218986150,0.01301182,30620.0,30619.0,0.30214129]
[1688218986540,0.35565426,30622.0,30619.0,0.30214129]
[1688218986740,0.35565426,30622.0,30621.0,0.2463]
[1688218988441,0.44014465,30622.0,30621.0,0.2463]
[1688218993242,0.83226905,30622.0,30621.0,0.2463]
[1688218993643,0.44014465,30622.0,30621.0,0.2463]
[1688218995957,0.83225926,30622.0,30621.0,0.2463]
[1688218996858,0.84530016,30622.0,30621.0,0.2463]
[1688218997156,0.84530016,30622.0,30621.0,0.5767]
[1688218998844,0.84530016,30622.0,30621.0,0.5765593]
[1688219001351,0.4531928,30622.0,30621.0,0.5765593]
[1688219007264,0.7003928,30622.0,30619.0,0.2458]
[1688219007556,0.608,30620.0,30619.0,0.21935901]
[1688219007758,0.44529039,30620.0,30616.0,0.6067]
[1688219007966,0.2472,30617.0,30616.0,0.6067]
[1688219008158,0.33169039,30617.0,30616.0,0.6067]
[1688219008361,0.34490992,30617.0,30616.0,0.6067]
[1688219008747,0.34490992,30617.0,30616.0,0.626301]
[1688219009379,0.09770992,30617.0,30616.0,0.626301]
[1688219010555,0.09770992,30617.0,30616.0,0.265501]
[1688219017760,0.34480992,30617.0,30616.0,0.265501]
[1688219020256,0.34480992,30617.0,30616.0,0.26534372]
[1688219020459,0.34480992,30617.0,30616.0,0.28357341]
[1688219020666,0.34480992,30617.0,30616.0,0.26534372]
[1688219021464,0.34480992,30617.0,30616.0,0.28357341]
[1688219021685,0.37061124,30617.0,30616.0,0.26534372]
[1688219030771,0.37061124,30617.0,30616.0,0.24574272]
[1688219031572,0.37061124,30617.0,30616.0,0.26534372]
[1688219032374,0.37061124,30617.0,30616.0,0.28357341]
[1688219032993,0.37061124,30617.0,30616.0,0.30242286]
[1688219033975,0.12351124,30617.0,30616.0,0.30242286]
[1688219037883,0.12329317,30617.0,30616.0,0.30242286]
[1688219043883,0.12329317,30617.0,30616.0,0.28357341]
[1688219044290,0.12329317,30617.0,30616.0,0.26397241]
[1688219044689,0.12329317,30617.0,30616.0,0.28282186]
[1688219045281,0.12329317,30617.0,30616.0,0.30242286]
[1688219050091,0.54199833,30623.0,30616.0,0.66976286]
[1688219050092,0.78919833,30623.0,30616.0,0.66976286]
[1688219050387,0.36467118,30623.0,30622.0,0.266797]
[1688219050596,0.36467118,30623.0,30622.0,0.28502669]
[1688219050896,0.36467118,30623.0,30622.0,0.266797]
[1688219051085,0.36467118,30623.0,30622.0,0.28564645]
[1688219051286,0.39057433,30623.0,30622.0,0.28564645]
[1688219051696,0.39057433,30623.0,30622.0,0.30387614]
[1688219052496,0.39057433,30623.0,30622.0,0.35827165]
[1688219052798,0.39057433,30623.0,30622.0,0.30387614]
[1688219052985,0.39057433,30623.0,30622.0,0.28564645]
[1688219053186,0.47504838,30623.0,30622.0,0.2472]
[1688219054391,0.22784838,30623.0,30622.0,0.2472]
[1688219054594,0.47504838,30623.0,30622.0,0.2472]
[1688219054993,0.47504838,30623.0,30622.0,0.26542969]
[1688219055194,0.47504838,30623.0,30622.0,0.26604945]
[1688219055504,0.47504838,30623.0,30622.0,0.28564545]
[1688219056298,0.47504838,30623.0,30622.0,0.30387514]
[1688219056988,0.47504838,30623.0,30622.0,0.28564545]
[1688219057189,0.47504838,30623.0,30622.0,0.30387514]
[1688219057390,0.47504838,30623.0,30622.0,0.28564545]
[1688219057694,0.48487335,30623.0,30622.0,0.28564545]
[1688219058101,0.23767335,30623.0,30622.0,0.28564545]
[1688219058301,0.48487335,30623.0,30622.0,0.28564545]
[1688219059401,0.48487335,30623.0,30622.0,0.266796]
[1688219060308,0.48487335,30623.0,30622.0,0.2472]
[1688219061303,0.48487335,30623.0,30619.0,0.38088783]
[1688219061508,0.2453,30620.0,30619.0,0.36128983]
[1688219061799,0.33966094,30620.0,30619.0,0.36128983]
[1688219065500,0.33966094,30620.0,30619.0,0.38088783]
[1688219066098,0.33966094,30620.0,30619.0,0.39911752]
[1688219066305,0.33966094,30620.0,30619.0,0.38088783]
[1688219067501,0.33966094,30620.0,30619.0,0.02008783]
[1688219067798,0.33966094,30620.0,30619.0,0.00048983]
[1688219068201,0.33966094,30620.0,30619.0,0.02008783]
[1688219069902,0.33966094,30620.0,30619.0,0.03893728]
[1688219071612,0.33966094,30620.0,30619.0,0.02008783]
[1688219074611,0.34156094,30620.0,30619.0,0.26728783]
[1688219082217,0.34156094,30620.0,30619.0,0.28613728]
[1688219082615,0.34156094,30620.0,30619.0,0.30436697]
[1688219083006,0.34156094,30620.0,30619.0,0.28613728]
[1688219084414,0.09436094,30620.0,30619.0,0.28613728]
[1688219085607,0.09436094,30620.0,30619.0,0.30436697]
[1688219085913,0.09436094,30620.0,30619.0,0.26728783]
[1688219088116,0.09436094,30620.0,30619.0,0.28613728]
[1688219090120,0.09436094,30620.0,30619.0,0.26728783]
[1688219094436,0.34146094,30620.0,30619.0,0.24768983]
[1688219094721,0.34146094,30620.0,30616.0,0.6071]
[1688219094722,1.39156094,30620.0,30616.0,0.6071]
[1688219094925,0.2472,30617.0,30614.0,0.019601]
[1688219095117,0.608,30615.0,30614.0,0.019601]
[1688219095319,0.69247405,30615.0,30614.0,0.019601]
[1688219101538,0.71605768,30615.0,30614.0,0.019601]
[1688219104539,0.71605768,30615.0,30614.0,0.266201]
[1688219104734,0.74202969,30615.0,30614.0,0.266201]
[1688219105035,0.38122969,30615.0,30614.0,0.266201]
[1688219106133,0.38122969,30615.0,30614.0,0.28505045]
[1688219108247,0.38122969,30615.0,30614.0,0.26604253]
[1688219113044,0.38122969,30615.0,30614.0,0.2466]
[1688219114543,0.38122969,30615.0,30613.0,0.608]
[1688219114750,0.33167405,30614.0,30613.0,0.608]
[1688219116647,0.35509027,30614.0,30613.0,0.608]
[1688219118355,0.35509027,30614.0,30613.0,0.2472]
[1688219120643,0.27061622,30614.0,30613.0,0.2472]
[1688219122854,0.27061622,30614.0,30613.0,0.266801]
[1688219123159,0.27061622,30614.0,30613.0,0.28565045]
[1688219124658,0.27061622,30614.0,30613.0,0.28505045]
[1688219124858,0.27061622,30614.0,30613.0,0.266201]
[1688219128156,0.35510256,30614.0,30613.0,0.266201]
[1688219131951,0.35490256,30614.0,30613.0,0.266201]
[1688219132763,0.35529122,30614.0,30613.0,0.266201]
[1688219134350,0.35529122,30614.0,30613.0,0.019601]
[1688219134547,0.35539122,30614.0,30613.0,0.019601]
[1688219136961,0.35539122,30614.0,30612.0,0.9181]
[1688219137265,0.08448634,30613.0,30612.0,0.9181]
[1688219137764,0.10523945,30613.0,30612.0,0.937702]
[1688219142771,0.10523945,30613.0,30612.0,0.9181]
[1688219142962,0.10523945,30613.0,30612.0,0.55721689]
[1688219143162,0.35243945,30613.0,30611.0,0.00048996]
[1688219143368,0.33168634,30612.0,30607.0,0.019605]
[1688219143572,0.3608,30610.0,30608.0,0.019605]
[1688219143875,0.3608,30610.0,30606.0,0.312554]
[1688219143876,0.33168634,30609.0,30606.0,0.312554]
[1688219144064,0.247,30607.0,30606.0,0.312554]
[1688219144264,0.33148634,30607.0,30606.0,0.312554]
[1688219144663,0.33184432,30607.0,30606.0,0.312554]
[1688219145360,0.24735798,30607.0,30606.0,0.312554]
[1688219146172,0.24735798,30607.0,30606.0,0.643454]
[1688219146576,0.26276463,30607.0,30606.0,0.643454]
[1688219149164,0.26261148,30607.0,30606.0,0.643454]
[1688219153479,0.26261148,30607.0,30606.0,0.5781]
[1688219154475,0.28942359,30607.0,30606.0,0.5781]
[1688219158076,0.28942359,30607.0,30606.0,0.597706]
[1688219160275,0.28942359,30607.0,30606.0,0.5781]
[1688219160472,0.28942359,30607.0,30606.0,0.597706]
[1688219162787,0.28942359,30607.0,30606.0,0.5781]
[1688219162979,0.65022359,30607.0,30603.0,0.26539709]
[1688219163177,0.40337674,30607.0,30604.0,0.3083]
[1688219163491,0.2453,30605.0,30604.0,0.3083]
[1688219163784,0.25753284,30605.0,30604.0,0.3083]
[1688219164782,0.25788257,30605.0,30604.0,0.30807146]
[1688219165882,0.25788257,30605.0,30604.0,0.57487846]
[1688219172782,0.25753284,30605.0,30604.0,0.57487846]
[1688219174480,0.25943284,30605.0,30604.0,0.57487846]
[1688219184501,0.25753284,30605.0,30604.0,0.57347846]
[1688219187706,0.25753284,30605.0,30603.0,0.00049009]
[1688219187707,0.34204275,30605.0,30603.0,0.00049009]
[1688219187904,0.2472,30604.0,30603.0,0.00049009]
[1688219188204,0.34396017,30604.0,30603.0,0.00049009]
[1688219188404,0.70476017,30604.0,30603.0,0.00049009]
[1688219195997,0.62024958,30604.0,30603.0,0.00049009]
[1688219197298,0.70476234,30604.0,30603.0,0.00049009]
[1688219198110,1.19506516,30604.0,30603.0,0.00049009]
[1688219198899,1.21467216,30604.0,30603.0,0.00049009]
[1688219199104,1.21139503,30604.0,30603.0,0.00049009]
[1688219201112,1.21139503,30604.0,30603.0,0.00027664]
[1688219203908,1.26139503,30604.0,30603.0,1e-08]
[1688219204413,1.0,30600.0,30597.0,0.3271]
[1688219204618,0.627411,30598.0,30597.0,0.3271]
[1688219204802,0.71192376,30598.0,30597.0,0.3271]
[1688219205211,0.71192376,30598.0,30595.0,0.019613]
[1688219205408,0.266812,30596.0,30595.0,0.019613]
[1688219205610,0.266812,30596.0,30595.0,0.337413]
[1688219205812,0.266812,30596.0,30595.0,0.3178]
[1688219206615,0.26955956,30596.0,30595.0,0.3178]
[1688219206810,0.266812,30596.0,30595.0,0.3178]
[1688219211419,1.266812,30596.0,30595.0,0.3178]
[1688219211617,1.266812,30596.0,30593.0,0.00049025]
[1688219211817,0.6078,30594.0,30593.0,0.00049025]
[1688219212021,0.627414,30594.0,30593.0,0.00049025]
[1688219214516,0.627414,30594.0,30593.0,0.02010425]
[1688219216133,0.627414,30594.0,30593.0,0.00049025]
[1688219217524,0.627414,30594.0,30593.0,0.00032188]
[1688219219125,0.627414,30594.0,30593.0,0.01993588]
[1688219219320,0.266614,30594.0,30593.0,0.01993588]
[1688219224728,0.266614,30594.0,30593.0,0.26583588]
[1688219225227,0.266614,30594.0,30593.0,0.28406557]
[1688219225620,0.266614,30594.0,30593.0,0.26583588]
[1688219227214,0.266614,30594.0,30593.0,0.28406557]
[1688219227616,0.266614,30594.0,30593.0,0.26583588]
[1688219234429,0.266814,30594.0,30593.0,0.26543588]
[1688219236334,0.266814,30594.0,30593.0,0.28428533]
[1688219236522,0.266814,30594.0,30593.0,0.30251502]
[1688219236721,0.266814,30594.0,30593.0,0.28428533]
[1688219237927,0.266814,30594.0,30593.0,0.30251502]
[1688219238646,0.266814,30594.0,30593.0,0.28428533]
[1688219238831,0.266814,30594.0,30593.0,0.26543588]
[1688219239436,0.266814,30594.0,30593.0,0.28366557]
[1688219239831,0.266814,30594.0,30593.0,0.26543588]
[1688219241738,0.266814,30594.0,30593.0,0.28366557]
[1688219242145,0.266814,30594.0,30593.0,0.26543588]
[1688219243545,0.266813,30594.0,30593.0,0.30251502]
[1688219243931,0.266813,30594.0,30593.0,0.28428533]
[1688219244132,0.266813,30594.0,30593.0,0.30251502]
[1688219244639,0.019613,30594.0,30593.0,0.30251502]
[1688219249649,0.019613,30594.0,30593.0,0.26543588]
[1688219249948,0.019613,30594.0,30593.0,0.28366557]
[1688219250652,0.019613,30594.0,30593.0,0.30251502]
[1688219254738,0.019613,30594.0,30593.0,0.28428533]
[1688219255952,0.019613,30594.0,30593.0,0.30251502]
[1688219258343,0.019613,30594.0,30593.0,0.28428533]
[1688219258543,0.019613,30594.0,30593.0,0.26543588]
[1688219259052,0.019613,30594.0,30593.0,0.28366557]
[1688219259553,0.019613,30594.0,30593.0,0.30251502]
[1688219260843,0.019613,30594.0,30593.0,0.28428533]
[1688219261353,0.019613,30594.0,30593.0,0.30251502]
[1688219261654,0.019613,30594.0,30593.0,0.66331502]
[1688219262453,0.10414352,30594.0,30593.0,0.66331502]
[1688219263056,0.10414352,30594.0,30593.0,0.30251502]
[1688219263250,0.019613,30594.0,30593.0,0.26543588]
[1688219263447,0.019613,30594.0,30593.0,0.28366557]
[1688219263843,0.019613,30594.0,30593.0,0.30251502]
[1688219264044,0.019613,30594.0,30593.0,0.28428533]
[1688219264248,0.019613,30594.0,30593.0,0.30251502]
[1688219264765,0.019613,30594.0,30593.0,0.28428533]
[1688219266047,0.019613,30594.0,30593.0,0.30251502]
[1688219266446,0.019613,30594.0,30593.0,0.28428533]
[1688219269465,0.019613,30594.0,30593.0,0.30251502]
[1688219270461,0.019613,30594.0,30593.0,0.66331502]
[1688219270967,0.10414358,30594.0,30593.0,0.66331502]
[1688219272463,0.019613,30594.0,30593.0,0.66331502]